[Event "Early-Titled-Tuesday-Blitz-May-07-2024"]
[Site "Chess.com"]
[Date "2024.05.07"]
[Round "8"]
[White "NikitaShnadrygin"]
[Black "betta2004"]
[Result "1-0"]
[WhiteElo "2707"]
[BlackElo "2540"]
[TimeControl "180+1"]
[EndTime "9:31:13 PDT"]
[Termination "NikitaShnadrygin won by checkmate"]

1. e4 {[%clk 0:02:59.6]} 1... e5 {[%clk 0:02:59.6]} 2. Nc3 {[%clk 0:02:58.4]}
2... Nf6 {[%clk 0:02:57.8]} 3. f4 {[%clk 0:02:58.3]} 3... d5 {[%clk 0:02:57.7]}
4. fxe5 {[%clk 0:02:58.3]} 4... Nxe4 {[%clk 0:02:57.1]} 5. Qf3 {[%clk
0:02:58.1]} 5... Nxc3 {[%clk 0:02:57]} 6. bxc3 {[%clk 0:02:56.9]} 6... Be6
{[%clk 0:02:55.9]} 7. d4 {[%clk 0:02:54]} 7... Be7 {[%clk 0:02:56]} 8. Bd3
{[%clk 0:02:52.5]} 8... c5 {[%clk 0:02:56.1]} 9. Ne2 {[%clk 0:02:52.3]} 9... Nc6
{[%clk 0:02:56.7]} 10. O-O {[%clk 0:02:51.8]} 10... Qc7 {[%clk 0:02:55]} 11. Be3
{[%clk 0:02:43.4]} 11... O-O-O {[%clk 0:02:54.7]} 12. Rab1 {[%clk 0:02:32.4]}
12... g6 {[%clk 0:02:55]} 13. Nf4 {[%clk 0:02:31.2]} 13... Qa5 {[%clk
0:02:48.1]} 14. Nxe6 {[%clk 0:02:22]} 14... fxe6 {[%clk 0:02:48.3]} 15. Qg4
{[%clk 0:02:08.7]} 15... Qxc3 {[%clk 0:02:46.3]} 16. Qxe6+ {[%clk 0:02:08.6]}
16... Kc7 {[%clk 0:02:46.8]} 17. Rb3 {[%clk 0:01:39.1]} 17... Qa5 {[%clk
0:02:45.4]} 18. Bb5 {[%clk 0:01:12]} 18... Rd7 {[%clk 0:02:17.2]} 19. Bxc6
{[%clk 0:00:48.5]} 19... bxc6 {[%clk 0:02:18.1]} 20. Rfb1 {[%clk 0:00:48.7]}
20... Rhd8 {[%clk 0:02:17.8]} 21. Rb7+ {[%clk 0:00:47]} 21... Kc8 {[%clk
0:02:18.2]} 22. Rb8+ {[%clk 0:00:44.2]} 22... Kc7 {[%clk 0:02:18.3]} 23. R1b7#
{[%clk 0:00:45.1]} 1-0

[Event "Early-Titled-Tuesday-Blitz-May-07-2024"]
[Site "Chess.com"]
[Date "2024.05.07"]
[Round "8"]
[White "Kyrko_Gamba"]
[Black "edgarhay012"]
[Result "1-0"]
[WhiteElo "2508"]
[BlackElo "2647"]
[TimeControl "180+1"]
[EndTime "9:31:22 PDT"]
[Termination "Kyrko_Gamba won by resignation"]

1. e4 {[%clk 0:03:00.9]} 1... c5 {[%clk 0:02:58.4]} 2. Nf3 {[%clk 0:03:00.2]}
2... e6 {[%clk 0:02:59]} 3. d4 {[%clk 0:02:59.8]} 3... cxd4 {[%clk 0:02:59.9]}
4. Nxd4 {[%clk 0:03:00.5]} 4... Nf6 {[%clk 0:03:00.3]} 5. Nc3 {[%clk 0:03:00.4]}
5... Nc6 {[%clk 0:03:00.9]} 6. Ndb5 {[%clk 0:02:57.2]} 6... Bb4 {[%clk 0:03:00]}
7. a3 {[%clk 0:02:57.2]} 7... Bxc3+ {[%clk 0:03:00]} 8. Nxc3 {[%clk 0:02:58.1]}
8... d5 {[%clk 0:03:00.9]} 9. Bd3 {[%clk 0:02:56.4]} 9... O-O {[%clk 0:02:59.8]}
10. O-O {[%clk 0:02:52]} 10... Ne5 {[%clk 0:02:50.7]} 11. exd5 {[%clk
0:02:50.5]} 11... exd5 {[%clk 0:02:48.5]} 12. Bg5 {[%clk 0:02:49.5]} 12... Be6
{[%clk 0:02:48.2]} 13. Re1 {[%clk 0:02:42.7]} 13... Nxd3 {[%clk 0:02:45.6]} 14.
Qxd3 {[%clk 0:02:43.2]} 14... h6 {[%clk 0:02:45.3]} 15. Bh4 {[%clk 0:02:34.3]}
15... Re8 {[%clk 0:02:26.5]} 16. Qd4 {[%clk 0:02:26.6]} 16... g5 {[%clk
0:02:15.8]} 17. Bg3 {[%clk 0:02:26.1]} 17... Ne4 {[%clk 0:02:16.2]} 18. Nxe4
{[%clk 0:02:25.1]} 18... dxe4 {[%clk 0:02:17.1]} 19. Qb4 {[%clk 0:01:53.3]}
19... Qd5 {[%clk 0:01:53.2]} 20. Rad1 {[%clk 0:01:51.8]} 20... Qc6 {[%clk
0:01:53.4]} 21. Be5 {[%clk 0:01:37.1]} 21... Rad8 {[%clk 0:01:41.6]} 22. Rxd8
{[%clk 0:01:34.9]} 22... Rxd8 {[%clk 0:01:42.5]} 23. Qe7 {[%clk 0:01:34.3]}
23... Qd5 {[%clk 0:01:37.5]} 24. Qf6 {[%clk 0:01:28.6]} 24... Kf8 {[%clk
0:01:38]} 25. Qh8+ {[%clk 0:01:24.5]} 25... Ke7 {[%clk 0:01:37]} 26. Bf6+ {[%clk
0:01:25.1]} 26... Kd6 {[%clk 0:01:37.4]} 1-0

[Event "Early-Titled-Tuesday-Blitz-May-07-2024"]
[Site "Chess.com"]
[Date "2024.05.07"]
[Round "8"]
[White "Sjakkerntobi"]
[Black "H3nriqueTV"]
[Result "1-0"]
[WhiteElo "2550"]
[BlackElo "2431"]
[TimeControl "180+1"]
[EndTime "9:31:26 PDT"]
[Termination "Sjakkerntobi won by resignation"]

1. e4 {[%clk 0:03:00.9]} 1... c5 {[%clk 0:02:53.8]} 2. Nf3 {[%clk 0:03:00.8]}
2... b6 {[%clk 0:02:50.6]} 3. d4 {[%clk 0:02:57]} 3... cxd4 {[%clk 0:02:51.5]}
4. Nxd4 {[%clk 0:02:57.8]} 4... Bb7 {[%clk 0:02:46.4]} 5. Nc3 {[%clk 0:02:55.9]}
5... a6 {[%clk 0:02:45.8]} 6. Bc4 {[%clk 0:02:49]} 6... e6 {[%clk 0:02:45.8]} 7.
O-O {[%clk 0:02:48.5]} 7... Qc7 {[%clk 0:02:45.9]} 8. Bb3 {[%clk 0:02:47.9]}
8... Nf6 {[%clk 0:02:45.8]} 9. Re1 {[%clk 0:02:47.8]} 9... Nc6 {[%clk
0:02:39.3]} 10. Nxc6 {[%clk 0:02:46.2]} 10... Qxc6 {[%clk 0:02:39.7]} 11. Nd5
{[%clk 0:02:35.2]} 11... Bc5 {[%clk 0:02:27.8]} 12. Bf4 {[%clk 0:02:21.1]} 12...
Nxd5 {[%clk 0:02:05.5]} 13. exd5 {[%clk 0:02:11.9]} 13... Qc8 {[%clk 0:02:04.9]}
14. Qg4 {[%clk 0:02:10.3]} 14... O-O {[%clk 0:01:21.5]} 15. Bh6 {[%clk
0:02:08.1]} 15... g6 {[%clk 0:01:22]} 16. dxe6 {[%clk 0:02:08.3]} 16... dxe6
{[%clk 0:01:19.8]} 17. Rxe6 {[%clk 0:01:58.5]} 17... Re8 {[%clk 0:00:48.8]} 18.
Rxg6+ {[%clk 0:01:55.1]} 1-0

[Event "Early-Titled-Tuesday-Blitz-May-07-2024"]
[Site "Chess.com"]
[Date "2024.05.07"]
[Round "8"]
[White "NovakRatko"]
[Black "Kostina_Nadezhda"]
[Result "0-1"]
[WhiteElo "2404"]
[BlackElo "2294"]
[TimeControl "180+1"]
[EndTime "9:31:36 PDT"]
[Termination "Kostina_Nadezhda won by resignation"]

1. d4 {[%clk 0:03:00.9]} 1... d5 {[%clk 0:01:20.8]} 2. c4 {[%clk 0:02:58.1]}
2... dxc4 {[%clk 0:01:18.1]} 3. e4 {[%clk 0:02:57.7]} 3... e5 {[%clk 0:01:17.5]}
4. Nf3 {[%clk 0:02:57.8]} 4... exd4 {[%clk 0:01:16.5]} 5. Bxc4 {[%clk
0:02:58.1]} 5... Bb4+ {[%clk 0:01:15.1]} 6. Nbd2 {[%clk 0:02:56.8]} 6... Nc6
{[%clk 0:01:15]} 7. Qb3 {[%clk 0:02:52.5]} 7... Qe7 {[%clk 0:01:09.3]} 8. O-O
{[%clk 0:02:49.9]} 8... Be6 {[%clk 0:01:07.3]} 9. Bd5 {[%clk 0:02:40.2]} 9...
O-O-O {[%clk 0:00:58.1]} 10. a3 {[%clk 0:02:37.6]} 10... Bc5 {[%clk 0:00:56.7]}
11. Qc4 {[%clk 0:02:28.3]} 11... Bb6 {[%clk 0:00:55.3]} 12. b4 {[%clk
0:02:25.3]} 12... Nf6 {[%clk 0:00:54.2]} 13. Nb3 {[%clk 0:02:10.4]} 13... Nxd5
{[%clk 0:00:51.4]} 14. exd5 {[%clk 0:02:08.5]} 14... Bxd5 {[%clk 0:00:51.3]} 15.
Qc3 {[%clk 0:02:08.4]} 15... dxc3 {[%clk 0:00:51.1]} 0-1

[Event "Early-Titled-Tuesday-Blitz-May-07-2024"]
[Site "Chess.com"]
[Date "2024.05.07"]
[Round "8"]
[White "Alexandr_Kholin"]
[Black "AcostaPablo"]
[Result "0-1"]
[WhiteElo "2496"]
[BlackElo "2634"]
[TimeControl "180+1"]
[EndTime "9:31:49 PDT"]
[Termination "AcostaPablo won by resignation"]

1. d4 {[%clk 0:03:00.9]} 1... Nf6 {[%clk 0:02:47.8]} 2. Nf3 {[%clk 0:02:59]}
2... c5 {[%clk 0:02:45.5]} 3. d5 {[%clk 0:02:57.9]} 3... g6 {[%clk 0:02:45.2]}
4. Nc3 {[%clk 0:02:56.1]} 4... Bg7 {[%clk 0:02:45]} 5. e4 {[%clk 0:02:55.7]}
5... d6 {[%clk 0:02:44.6]} 6. h3 {[%clk 0:02:55.6]} 6... O-O {[%clk 0:02:44.8]}
7. Bc4 {[%clk 0:02:54.7]} 7... Na6 {[%clk 0:02:45.3]} 8. O-O {[%clk 0:02:53.6]}
8... Nc7 {[%clk 0:02:46]} 9. Re1 {[%clk 0:02:53.3]} 9... Rb8 {[%clk 0:02:42.4]}
10. a4 {[%clk 0:02:52.4]} 10... Nd7 {[%clk 0:02:40.2]} 11. Bf4 {[%clk
0:02:51.6]} 11... a6 {[%clk 0:02:38.5]} 12. e5 {[%clk 0:02:43.4]} 12... dxe5
{[%clk 0:02:36.3]} 13. Nxe5 {[%clk 0:02:44.3]} 13... Nxe5 {[%clk 0:02:32.9]} 14.
Bxe5 {[%clk 0:02:45.2]} 14... Bxe5 {[%clk 0:02:29.5]} 15. Rxe5 {[%clk
0:02:46.1]} 15... b5 {[%clk 0:02:29.6]} 16. axb5 {[%clk 0:02:43.7]} 16... axb5
{[%clk 0:02:30.5]} 17. Bf1 {[%clk 0:02:43.1]} 17... Qd6 {[%clk 0:02:15.8]} 18.
Qe2 {[%clk 0:02:35.6]} 18... b4 {[%clk 0:02:02.4]} 19. Na4 {[%clk 0:02:29.7]}
19... Ba6 {[%clk 0:01:58.1]} 20. Qe4 {[%clk 0:02:25.9]} 20... Bxf1 {[%clk
0:01:47.7]} 21. Rxf1 {[%clk 0:02:26.8]} 21... Rbd8 {[%clk 0:01:43.8]} 22. Rxe7
{[%clk 0:02:24]} 22... Nxd5 {[%clk 0:01:42.7]} 23. Re5 {[%clk 0:02:17]} 23...
Nf6 {[%clk 0:01:30.3]} 24. Qe3 {[%clk 0:02:15.7]} 24... c4 {[%clk 0:01:27.3]}
25. Nb6 {[%clk 0:02:06.9]} 25... c3 {[%clk 0:01:17.9]} 26. bxc3 {[%clk
0:01:56.7]} 26... bxc3 {[%clk 0:01:18.8]} 27. Nc4 {[%clk 0:01:51.1]} 27... Qd4
{[%clk 0:01:16.3]} 28. Qxd4 {[%clk 0:01:48.9]} 28... Rxd4 {[%clk 0:01:17.2]} 29.
Rc5 {[%clk 0:01:49.5]} 29... Ne4 {[%clk 0:01:12.6]} 30. Ne3 {[%clk 0:01:48]}
30... Nxc5 {[%clk 0:01:11.2]} 0-1

[Event "Early-Titled-Tuesday-Blitz-May-07-2024"]
[Site "Chess.com"]
[Date "2024.05.07"]
[Round "8"]
[White "Irishchessman16"]
[Black "FREDERICKtheMATE"]
[Result "1-0"]
[WhiteElo "2574"]
[BlackElo "2695"]
[TimeControl "180+1"]
[EndTime "9:31:55 PDT"]
[Termination "Irishchessman16 won by checkmate"]

1. d4 {[%clk 0:03:00.9]} 1... d5 {[%clk 0:02:51.8]} 2. Nf3 {[%clk 0:03:01.4]}
2... Nf6 {[%clk 0:02:50.9]} 3. e3 {[%clk 0:03:01.9]} 3... Bf5 {[%clk 0:02:49.6]}
4. Bd3 {[%clk 0:02:59.9]} 4... Bxd3 {[%clk 0:02:49.2]} 5. cxd3 {[%clk
0:03:00.3]} 5... c6 {[%clk 0:02:48.2]} 6. O-O {[%clk 0:03:00.7]} 6... e6 {[%clk
0:02:48.5]} 7. Nc3 {[%clk 0:03:00.1]} 7... Nbd7 {[%clk 0:02:48.4]} 8. e4 {[%clk
0:02:59.8]} 8... dxe4 {[%clk 0:02:40.2]} 9. dxe4 {[%clk 0:03:00.7]} 9... Be7
{[%clk 0:02:40.3]} 10. Bg5 {[%clk 0:02:55]} 10... h6 {[%clk 0:02:40.3]} 11. Bh4
{[%clk 0:02:54.9]} 11... O-O {[%clk 0:02:39.4]} 12. Re1 {[%clk 0:02:49]} 12...
a5 {[%clk 0:02:30.9]} 13. Rc1 {[%clk 0:02:45.2]} 13... Re8 {[%clk 0:02:23.5]}
14. Qc2 {[%clk 0:02:39.8]} 14... Nb6 {[%clk 0:02:22.6]} 15. Rcd1 {[%clk
0:02:35.6]} 15... a4 {[%clk 0:02:17]} 16. a3 {[%clk 0:02:32.3]} 16... Nfd7
{[%clk 0:02:11.2]} 17. Bg3 {[%clk 0:02:30.5]} 17... Bf6 {[%clk 0:02:08.7]} 18.
Bd6 {[%clk 0:02:19.4]} 18... Nc4 {[%clk 0:02:07.8]} 19. Bf4 {[%clk 0:02:10.7]}
19... Ndb6 {[%clk 0:02:03.8]} 20. Bc1 {[%clk 0:01:56.1]} 20... Qc7 {[%clk
0:01:56.4]} 21. e5 {[%clk 0:01:54.5]} 21... Be7 {[%clk 0:01:56]} 22. Re4 {[%clk
0:01:54.4]} 22... Bf8 {[%clk 0:01:54.3]} 23. Rg4 {[%clk 0:01:52.2]} 23... Kh8
{[%clk 0:01:54.1]} 24. Rd3 {[%clk 0:01:38.5]} 24... Red8 {[%clk 0:01:47.8]} 25.
Ng5 {[%clk 0:01:37.7]} 25... g6 {[%clk 0:01:41]} 26. Rh3 {[%clk 0:01:28.1]}
26... Kg8 {[%clk 0:01:40.4]} 27. Nxe6 {[%clk 0:01:24.6]} 27... fxe6 {[%clk
0:01:40.5]} 28. Qxg6+ {[%clk 0:01:22.3]} 28... Bg7 {[%clk 0:01:39.7]} 29. Rxh6
{[%clk 0:01:20.6]} 29... Qf7 {[%clk 0:01:35.1]} 30. Rh8+ {[%clk 0:01:18.9]}
30... Kxh8 {[%clk 0:01:33.2]} 31. Qxf7 {[%clk 0:01:19.1]} 31... Rd7 {[%clk
0:01:24.5]} 32. Rh4+ {[%clk 0:01:18.6]} 32... Bh6 {[%clk 0:01:23.9]} 33. Rxh6#
{[%clk 0:01:18.3]} 1-0

[Event "Early-Titled-Tuesday-Blitz-May-07-2024"]
[Site "Chess.com"]
[Date "2024.05.07"]
[Round "8"]
[White "MaxLeto"]
[Black "KononenkoD"]
[Result "0-1"]
[WhiteElo "2423"]
[BlackElo "2598"]
[TimeControl "180+1"]
[EndTime "9:31:59 PDT"]
[Termination "KononenkoD won on time"]

1. e4 {[%clk 0:02:59.9]} 1... c6 {[%clk 0:02:59.9]} 2. Nc3 {[%clk 0:02:58.9]}
2... d5 {[%clk 0:03:00.8]} 3. Nf3 {[%clk 0:02:59.7]} 3... Bg4 {[%clk 0:02:59.9]}
4. h3 {[%clk 0:03:00]} 4... Bxf3 {[%clk 0:03:00]} 5. Qxf3 {[%clk 0:03:00.9]}
5... e6 {[%clk 0:03:00.8]} 6. d3 {[%clk 0:03:01.3]} 6... Bb4 {[%clk 0:02:58.8]}
7. Bd2 {[%clk 0:03:01.7]} 7... Ne7 {[%clk 0:02:57.3]} 8. O-O-O {[%clk
0:03:02.1]} 8... Nd7 {[%clk 0:02:55.6]} 9. Kb1 {[%clk 0:03:02.4]} 9... d4 {[%clk
0:02:51.1]} 10. Ne2 {[%clk 0:03:02.3]} 10... Bxd2 {[%clk 0:02:50.6]} 11. Rxd2
{[%clk 0:03:03.2]} 11... c5 {[%clk 0:02:51.2]} 12. g4 {[%clk 0:03:02.3]} 12...
b5 {[%clk 0:02:50.1]} 13. Bg2 {[%clk 0:02:56.8]} 13... Qb6 {[%clk 0:02:50]} 14.
e5 {[%clk 0:02:44.5]} 14... Rb8 {[%clk 0:02:44.4]} 15. Qg3 {[%clk 0:02:41]}
15... Qa5 {[%clk 0:02:38.2]} 16. Rdd1 {[%clk 0:02:39.7]} 16... Rb6 {[%clk
0:02:37.5]} 17. f4 {[%clk 0:02:37.1]} 17... Ra6 {[%clk 0:02:37.8]} 18. Nc1
{[%clk 0:02:37.8]} 18... Nb6 {[%clk 0:02:34.4]} 19. f5 {[%clk 0:01:14.8]} 19...
Ned5 {[%clk 0:02:33]} 20. Bxd5 {[%clk 0:00:38.2]} 20... Nxd5 {[%clk 0:02:31.6]}
21. Rdf1 {[%clk 0:00:36.6]} 21... Nc3+ {[%clk 0:02:21.1]} 22. bxc3 {[%clk
0:00:33.9]} 22... dxc3 {[%clk 0:02:20.8]} 23. d4 {[%clk 0:00:07.8]} 23... Qa3
{[%clk 0:02:20.1]} 0-1

[Event "Early-Titled-Tuesday-Blitz-May-07-2024"]
[Site "Chess.com"]
[Date "2024.05.07"]
[Round "8"]
[White "milovichalex"]
[Black "VirtualCoach"]
[Result "1-0"]
[WhiteElo "2343"]
[BlackElo "2143"]
[TimeControl "180+1"]
[EndTime "9:32:10 PDT"]
[Termination "milovichalex won by resignation"]

1. e4 {[%clk 0:03:00.9]} 1... c5 {[%clk 0:03:00.1]} 2. Nf3 {[%clk 0:03:00.7]}
2... Nc6 {[%clk 0:02:59.9]} 3. d4 {[%clk 0:03:01.1]} 3... cxd4 {[%clk
0:03:00.1]} 4. Nxd4 {[%clk 0:03:01.9]} 4... Nf6 {[%clk 0:03:00]} 5. Nc3 {[%clk
0:03:01.7]} 5... e5 {[%clk 0:03:00.3]} 6. Ndb5 {[%clk 0:03:02]} 6... d6 {[%clk
0:03:00.4]} 7. Bg5 {[%clk 0:03:01.8]} 7... a6 {[%clk 0:03:00.7]} 8. Bxf6 {[%clk
0:03:02.2]} 8... gxf6 {[%clk 0:03:00.5]} 9. Na3 {[%clk 0:03:03]} 9... b5 {[%clk
0:03:00.3]} 10. Nd5 {[%clk 0:03:03.4]} 10... f5 {[%clk 0:03:00.8]} 11. Bxb5
{[%clk 0:03:03.1]} 11... axb5 {[%clk 0:02:17.2]} 12. Nxb5 {[%clk 0:03:02.7]}
12... Qa5+ {[%clk 0:02:14.4]} 13. c3 {[%clk 0:02:57.4]} 13... Ra7 {[%clk
0:01:59]} 14. Nxa7 {[%clk 0:02:54.4]} 14... Qxa7 {[%clk 0:01:58.4]} 15. O-O
{[%clk 0:02:50.4]} 15... fxe4 {[%clk 0:01:57.6]} 16. Nf6+ {[%clk 0:02:48.5]}
16... Kd8 {[%clk 0:01:50.2]} 17. Nxe4 {[%clk 0:02:35]} 17... Qd7 {[%clk
0:01:46.7]} 18. b4 {[%clk 0:02:27.6]} 18... Rg8 {[%clk 0:01:44.1]} 19. Nf6
{[%clk 0:02:20.1]} 19... Rxg2+ {[%clk 0:01:27]} 20. Kxg2 {[%clk 0:02:18.6]}
20... Qh3+ {[%clk 0:01:26.9]} 21. Kg1 {[%clk 0:02:11]} 21... Bb7 {[%clk
0:01:25.2]} 22. Qg4 {[%clk 0:02:08]} 22... Qxg4+ {[%clk 0:00:40.3]} 23. Nxg4
{[%clk 0:02:07.4]} 23... Be7 {[%clk 0:00:38.9]} 24. Ne3 {[%clk 0:02:06.1]} 24...
Na7 {[%clk 0:00:37.9]} 25. a4 {[%clk 0:02:03.1]} 25... Bf6 {[%clk 0:00:36.1]}
26. b5 {[%clk 0:02:00.7]} 26... e4 {[%clk 0:00:35.6]} 27. Rac1 {[%clk
0:01:56.4]} 27... d5 {[%clk 0:00:34.9]} 28. Nxd5 {[%clk 0:01:51.6]} 28... Bxd5
{[%clk 0:00:32.6]} 29. Rfd1 {[%clk 0:01:51.7]} 1-0

[Event "Early-Titled-Tuesday-Blitz-May-07-2024"]
[Site "Chess.com"]
[Date "2024.05.07"]
[Round "8"]
[White "kpio91"]
[Black "SirStrateg"]
[Result "1-0"]
[WhiteElo "2873"]
[BlackElo "2697"]
[TimeControl "180+1"]
[EndTime "9:32:14 PDT"]
[Termination "kpio91 won by resignation"]

1. e4 {[%clk 0:03:00.9]} 1... d6 {[%clk 0:03:00.4]} 2. d4 {[%clk 0:02:59.7]}
2... Nf6 {[%clk 0:03:01]} 3. Bd3 {[%clk 0:02:57.5]} 3... e5 {[%clk 0:03:00.9]}
4. c3 {[%clk 0:02:57.2]} 4... Nc6 {[%clk 0:03:00.7]} 5. Ne2 {[%clk 0:02:52.4]}
5... d5 {[%clk 0:02:49.1]} 6. exd5 {[%clk 0:02:33.7]} 6... Nxd5 {[%clk
0:02:48.4]} 7. O-O {[%clk 0:02:32.9]} 7... exd4 {[%clk 0:02:48.8]} 8. cxd4
{[%clk 0:02:25.5]} 8... Be7 {[%clk 0:02:48.4]} 9. Nbc3 {[%clk 0:02:25.7]} 9...
O-O {[%clk 0:02:39.6]} 10. a3 {[%clk 0:02:24.7]} 10... Nxc3 {[%clk 0:02:33.4]}
11. bxc3 {[%clk 0:02:24.4]} 11... Bg4 {[%clk 0:02:30.4]} 12. Qc2 {[%clk
0:02:16.4]} 12... h6 {[%clk 0:02:27.9]} 13. Ng3 {[%clk 0:02:15]} 13... Bd6
{[%clk 0:02:16]} 14. Rb1 {[%clk 0:02:11.2]} 14... Rb8 {[%clk 0:02:10.2]} 15. h3
{[%clk 0:01:59.7]} 15... Be6 {[%clk 0:02:06.1]} 16. f4 {[%clk 0:01:51.3]} 16...
Na5 {[%clk 0:02:01.8]} 17. c4 {[%clk 0:01:44.7]} 17... c6 {[%clk 0:01:51.7]} 18.
Ne4 {[%clk 0:01:32.7]} 18... Be7 {[%clk 0:01:41.4]} 19. Bb2 {[%clk 0:01:26.5]}
19... b5 {[%clk 0:01:36.9]} 20. f5 {[%clk 0:01:19.9]} 20... Bxc4 {[%clk
0:01:35.9]} 21. f6 {[%clk 0:01:20]} 21... gxf6 {[%clk 0:01:21.9]} 22. d5 {[%clk
0:01:19.9]} 22... Qxd5 {[%clk 0:01:02.7]} 23. Nxf6+ {[%clk 0:01:14.8]} 23...
Bxf6 {[%clk 0:00:54.4]} 24. Bh7+ {[%clk 0:01:14.4]} 1-0

[Event "Early-Titled-Tuesday-Blitz-May-07-2024"]
[Site "Chess.com"]
[Date "2024.05.07"]
[Round "8"]
[White "catalin009"]
[Black "1800_strength"]
[Result "0-1"]
[WhiteElo "2563"]
[BlackElo "2792"]
[TimeControl "180+1"]
[EndTime "9:32:17 PDT"]
[Termination "1800_strength won by resignation"]

1. e4 {[%clk 0:03:00.9]} 1... a5 {[%clk 0:03:00.9]} 2. d4 {[%clk 0:03:00.1]}
2... Ra6 {[%clk 0:03:01.8]} 3. Bxa6 {[%clk 0:02:59.7]} 3... Nxa6 {[%clk
0:03:02.7]} 4. Nf3 {[%clk 0:03:00.3]} 4... b6 {[%clk 0:02:50.7]} 5. O-O {[%clk
0:03:00.2]} 5... Bb7 {[%clk 0:02:51.6]} 6. Re1 {[%clk 0:03:00.1]} 6... e6 {[%clk
0:02:51.1]} 7. c3 {[%clk 0:02:58.7]} 7... g6 {[%clk 0:02:51.7]} 8. Bg5 {[%clk
0:02:57.4]} 8... Qa8 {[%clk 0:02:50.3]} 9. Nbd2 {[%clk 0:02:56.5]} 9... Bg7
{[%clk 0:02:50.9]} 10. Qe2 {[%clk 0:02:55]} 10... h6 {[%clk 0:02:51.4]} 11. Bf4
{[%clk 0:02:52.9]} 11... Ne7 {[%clk 0:02:51.9]} 12. h4 {[%clk 0:02:46.1]} 12...
O-O {[%clk 0:02:51.5]} 13. Qe3 {[%clk 0:02:43.1]} 13... Kh7 {[%clk 0:02:51.4]}
14. Ne5 {[%clk 0:02:33.4]} 14... Qe8 {[%clk 0:02:28.7]} 15. Ng4 {[%clk 0:02:27]}
15... f5 {[%clk 0:02:29.2]} 16. Nxh6 {[%clk 0:01:32.4]} 16... fxe4 {[%clk
0:02:27.2]} 17. Nxe4 {[%clk 0:00:55.6]} 17... Nd5 {[%clk 0:02:26.7]} 18. Ng5+
{[%clk 0:00:49.8]} 18... Kxh6 {[%clk 0:02:17]} 19. Nxe6+ {[%clk 0:00:33.3]}
19... Rxf4 {[%clk 0:01:52.9]} 20. Qd2 {[%clk 0:00:01.4]} 20... dxe6 {[%clk
0:01:51.6]} 0-1

[Event "Early-Titled-Tuesday-Blitz-May-07-2024"]
[Site "Chess.com"]
[Date "2024.05.07"]
[Round "8"]
[White "Louis-Paulsen-Fan"]
[Black "MathiasWomacka"]
[Result "0-1"]
[WhiteElo "2365"]
[BlackElo "2526"]
[TimeControl "180+1"]
[EndTime "9:32:25 PDT"]
[Termination "MathiasWomacka won by resignation"]

1. d4 {[%clk 0:03:00.9]} 1... Nf6 {[%clk 0:02:58.6]} 2. Nf3 {[%clk 0:03:01]}
2... e6 {[%clk 0:02:59]} 3. c4 {[%clk 0:03:01.6]} 3... Bb4+ {[%clk 0:02:57.4]}
4. Bd2 {[%clk 0:03:01]} 4... Qe7 {[%clk 0:02:56.6]} 5. g3 {[%clk 0:03:00.9]}
5... Bxd2+ {[%clk 0:02:55.6]} 6. Nbxd2 {[%clk 0:02:58.5]} 6... d6 {[%clk
0:02:54.8]} 7. Bg2 {[%clk 0:02:58.7]} 7... e5 {[%clk 0:02:55.2]} 8. e4 {[%clk
0:02:55.6]} 8... O-O {[%clk 0:02:52.1]} 9. O-O {[%clk 0:02:55.1]} 9... Bg4
{[%clk 0:02:49.6]} 10. Qb3 {[%clk 0:02:48.7]} 10... Bxf3 {[%clk 0:02:46.1]} 11.
Nxf3 {[%clk 0:02:37.5]} 11... c5 {[%clk 0:02:44.7]} 12. d5 {[%clk 0:01:55.4]}
12... Nxe4 {[%clk 0:02:42.8]} 13. Rfe1 {[%clk 0:01:12.2]} 13... Nf6 {[%clk
0:02:41]} 14. Nxe5 {[%clk 0:01:02.6]} 14... dxe5 {[%clk 0:02:33.5]} 15. d6
{[%clk 0:01:03]} 15... Qxd6 {[%clk 0:02:33.3]} 16. Bxb7 {[%clk 0:00:58.4]} 16...
Nc6 {[%clk 0:02:31]} 17. Bxa8 {[%clk 0:00:57.4]} 17... Rxa8 {[%clk 0:02:31]} 18.
Qf3 {[%clk 0:00:32.9]} 18... Rb8 {[%clk 0:02:23.6]} 19. b3 {[%clk 0:00:28.7]}
19... Nd4 {[%clk 0:02:21.2]} 20. Qc3 {[%clk 0:00:14.6]} 20... e4 {[%clk
0:02:16.3]} 21. Re3 {[%clk 0:00:10.4]} 21... Re8 {[%clk 0:01:48.7]} 0-1

[Event "Early-Titled-Tuesday-Blitz-May-07-2024"]
[Site "Chess.com"]
[Date "2024.05.07"]
[Round "8"]
[White "Thebigsqueeze"]
[Black "ilushka"]
[Result "0-1"]
[WhiteElo "2378"]
[BlackElo "2527"]
[TimeControl "180+1"]
[EndTime "9:32:27 PDT"]
[Termination "ilushka won by resignation"]

1. d4 {[%clk 0:02:58.6]} 1... d5 {[%clk 0:02:59.2]} 2. Nf3 {[%clk 0:02:58.6]}
2... Nf6 {[%clk 0:02:59]} 3. g3 {[%clk 0:02:59]} 3... c5 {[%clk 0:02:58.9]} 4.
Bg2 {[%clk 0:02:59.1]} 4... cxd4 {[%clk 0:02:59.3]} 5. O-O {[%clk 0:02:58.2]}
5... h6 {[%clk 0:02:48.2]} 6. b3 {[%clk 0:02:53.9]} 6... Nc6 {[%clk 0:02:43.1]}
7. Nxd4 {[%clk 0:02:53.2]} 7... e5 {[%clk 0:02:43.3]} 8. Nxc6 {[%clk 0:02:53.1]}
8... bxc6 {[%clk 0:02:44.2]} 9. c4 {[%clk 0:02:52.9]} 9... Be6 {[%clk
0:02:38.8]} 10. Qc2 {[%clk 0:02:50.6]} 10... Rc8 {[%clk 0:02:36.4]} 11. Rd1
{[%clk 0:02:38.7]} 11... Bd6 {[%clk 0:02:35]} 12. e3 {[%clk 0:02:36.7]} 12...
O-O {[%clk 0:02:33.9]} 13. Ba3 {[%clk 0:02:33]} 13... Bxa3 {[%clk 0:02:30.4]}
14. Nxa3 {[%clk 0:02:33.1]} 14... Qe7 {[%clk 0:02:31]} 15. Qb2 {[%clk
0:02:24.9]} 15... Rfd8 {[%clk 0:02:24.5]} 16. Rac1 {[%clk 0:02:20.4]} 16... Bg4
{[%clk 0:02:17.5]} 17. Re1 {[%clk 0:02:15.8]} 17... e4 {[%clk 0:02:14.4]} 18.
cxd5 {[%clk 0:02:09.5]} 18... cxd5 {[%clk 0:02:13.4]} 19. Nc2 {[%clk 0:02:10.1]}
19... Qd7 {[%clk 0:02:10.1]} 20. Nd4 {[%clk 0:02:09.4]} 20... Bh3 {[%clk
0:02:06.2]} 21. Bh1 {[%clk 0:02:08]} 21... h5 {[%clk 0:01:59.3]} 22. Rxc8 {[%clk
0:02:07.2]} 22... Rxc8 {[%clk 0:01:59.1]} 23. Rc1 {[%clk 0:02:07.6]} 23... h4
{[%clk 0:01:58.7]} 24. Rxc8+ {[%clk 0:02:06.2]} 24... Qxc8 {[%clk 0:01:58.6]}
25. Qc2 {[%clk 0:02:06.6]} 25... Qg4 {[%clk 0:01:44.8]} 26. Qe2 {[%clk
0:02:00.9]} 26... Qxe2 {[%clk 0:01:35]} 27. Nxe2 {[%clk 0:01:59.6]} 27... Kf8
{[%clk 0:01:35]} 28. f3 {[%clk 0:01:52.4]} 28... exf3 {[%clk 0:01:32.9]} 29.
Bxf3 {[%clk 0:01:52.2]} 29... hxg3 {[%clk 0:01:33.5]} 30. hxg3 {[%clk 0:01:52]}
30... Ke7 {[%clk 0:01:33.7]} 31. Nc3 {[%clk 0:01:30.7]} 31... Kd6 {[%clk
0:01:26]} 32. Nb5+ {[%clk 0:01:30.5]} 32... Kc5 {[%clk 0:01:26.4]} 33. Nxa7
{[%clk 0:01:30.3]} 33... Kb6 {[%clk 0:01:26.7]} 34. g4 {[%clk 0:01:22.3]} 34...
Kxa7 {[%clk 0:01:24.4]} 35. g5 {[%clk 0:01:22]} 35... Ne4 {[%clk 0:01:24.1]} 36.
g6 {[%clk 0:01:14.6]} 36... fxg6 {[%clk 0:01:23.6]} 0-1